[Event "Late-Titled-Tuesday-Blitz-October-03-2023"]
[Site "Chess.com"]
[Date "2023.10.03"]
[Round "3"]
[White "Ali_rastbod"]
[Black "Oleksandr_Bortnyk"]
[Result "1-0"]
[WhiteElo "2712"]
[BlackElo "3007"]
[TimeControl "180+1"]
[EndTime "14:28:19 PDT"]
[Termination "Ali_rastbod won by resignation"]

1. d4 {[%clk 0:03:00.9]} 1... Nf6 {[%clk 0:02:55.3]} 2. c4 {[%clk 0:03:01]} 2...
g6 {[%clk 0:02:54.9]} 3. Nc3 {[%clk 0:03:01.3]} 3... Bg7 {[%clk 0:02:54.7]} 4.
e4 {[%clk 0:03:01.5]} 4... d6 {[%clk 0:02:55.3]} 5. Be2 {[%clk 0:03:01.8]} 5...
O-O {[%clk 0:02:44.5]} 6. Be3 {[%clk 0:03:02.1]} 6... Na6 {[%clk 0:02:37.7]} 7.
Nf3 {[%clk 0:02:58.5]} 7... e5 {[%clk 0:02:32.6]} 8. O-O {[%clk 0:02:58.4]} 8...
Qe7 {[%clk 0:02:31.5]} 9. dxe5 {[%clk 0:02:41.6]} 9... dxe5 {[%clk 0:02:29.9]}
10. Nd5 {[%clk 0:02:42.2]} 10... Qe6 {[%clk 0:01:35.4]} 11. Qc2 {[%clk
0:01:50.5]} 11... c6 {[%clk 0:01:30.8]} 12. Nxf6+ {[%clk 0:01:50]} 12... Qxf6
{[%clk 0:01:28.8]} 13. h3 {[%clk 0:01:46.6]} 13... h6 {[%clk 0:01:18]} 14. c5
{[%clk 0:01:43.4]} 14... Nc7 {[%clk 0:01:15]} 15. Rad1 {[%clk 0:01:42.4]} 15...
Ne6 {[%clk 0:01:14.6]} 16. Rd6 {[%clk 0:01:40.3]} 16... Re8 {[%clk 0:01:09.2]}
17. Rfd1 {[%clk 0:01:37.7]} 17... Bf8 {[%clk 0:01:09.4]} 18. R6d2 {[%clk
0:01:36.3]} 18... Nf4 {[%clk 0:01:09.3]} 19. Bxf4 {[%clk 0:01:34.5]} 19... exf4
{[%clk 0:01:06.1]} 20. b4 {[%clk 0:01:18.4]} 20... Be6 {[%clk 0:01:01.9]} 21.
Bc4 {[%clk 0:01:16.1]} 21... a5 {[%clk 0:01:01.8]} 22. b5 {[%clk 0:01:11.9]}
22... cxb5 {[%clk 0:00:49.8]} 23. Bxb5 {[%clk 0:01:03.1]} 23... Rec8 {[%clk
0:00:50]} 24. c6 {[%clk 0:01:03.6]} 24... bxc6 {[%clk 0:00:49.1]} 25. Bc4 {[%clk
0:01:04.1]} 25... Bb4 {[%clk 0:00:43.2]} 26. Bxe6 {[%clk 0:01:01.2]} 26... Qxe6
{[%clk 0:00:42.7]} 27. Rd7 {[%clk 0:01:00.6]} 27... Rab8 {[%clk 0:00:37.5]} 28.
e5 {[%clk 0:00:46.5]} 28... Rb5 {[%clk 0:00:31.6]} 29. h4 {[%clk 0:00:43.6]}
29... Rc5 {[%clk 0:00:29.1]} 30. Qe4 {[%clk 0:00:43]} 30... Rc4 {[%clk
0:00:28.5]} 31. Qe2 {[%clk 0:00:35.5]} 31... Bc5 {[%clk 0:00:28.5]} 32. Kh2
{[%clk 0:00:27.2]} 32... Ra4 {[%clk 0:00:27.5]} 33. R7d2 {[%clk 0:00:18.2]}
33... Kg7 {[%clk 0:00:26.8]} 34. Qa6 {[%clk 0:00:17.8]} 34... Re8 {[%clk
0:00:23.2]} 35. Qe2 {[%clk 0:00:16.7]} 35... Re7 {[%clk 0:00:21.3]} 36. Rc2
{[%clk 0:00:16.3]} 36... Bb6 {[%clk 0:00:21.3]} 37. Rb1 {[%clk 0:00:15.5]} 37...
Rb4 {[%clk 0:00:21.9]} 38. Re1 {[%clk 0:00:14.2]} 38... a4 {[%clk 0:00:14.7]}
39. Rec1 {[%clk 0:00:14.3]} 39... c5 {[%clk 0:00:14.6]} 40. Re1 {[%clk
0:00:14.6]} 40... a3 {[%clk 0:00:14.6]} 41. Qa6 {[%clk 0:00:14.3]} 41... Rb2
{[%clk 0:00:14]} 42. Rce2 {[%clk 0:00:14.6]} 42... Qxa2 {[%clk 0:00:13.7]} 43.
Qxb6 {[%clk 0:00:11]} 43... Re6 {[%clk 0:00:08.3]} 44. Qb5 {[%clk 0:00:08.9]}
44... c4 {[%clk 0:00:06.3]} 45. Nd4 {[%clk 0:00:05.2]} 45... Re7 {[%clk
0:00:04.5]} 46. e6 {[%clk 0:00:04.9]} 46... f6 {[%clk 0:00:02.9]} 47. Qc5 {[%clk
0:00:04.6]} 47... Re8 {[%clk 0:00:02.7]} 48. e7 {[%clk 0:00:04.2]} 48... Rxe2
{[%clk 0:00:02.4]} 49. Rxe2 {[%clk 0:00:05.1]} 49... Qb1 {[%clk 0:00:01.8]} 50.
Qxc4 {[%clk 0:00:04.9]} 50... Qb8 {[%clk 0:00:02]} 51. Ne6+ {[%clk 0:00:04.1]}
51... Kh7 {[%clk 0:00:02.4]} 52. Nf8+ {[%clk 0:00:04]} 52... Kg7 {[%clk
0:00:02.3]} 53. Ne6+ {[%clk 0:00:04.5]} 53... Kh7 {[%clk 0:00:02.9]} 54. Nc7
{[%clk 0:00:05.2]} 54... f3 {[%clk 0:00:02.5]} 55. Qf7+ {[%clk 0:00:04.6]} 55...
Kh8 {[%clk 0:00:02.6]} 56. gxf3 {[%clk 0:00:04.9]} 56... Qxc7+ {[%clk
0:00:01.8]} 57. Kg2 {[%clk 0:00:05.4]} 57... Qc6 {[%clk 0:00:02]} 58. Qxg6
{[%clk 0:00:03.8]} 58... a2 {[%clk 0:00:02.3]} 59. Qxh6+ {[%clk 0:00:04.1]}
59... Kg8 {[%clk 0:00:03]} 60. Qg6+ {[%clk 0:00:04.7]} 60... Kh8 {[%clk
0:00:03.7]} 61. Qh6+ {[%clk 0:00:03]} 61... Kg8 {[%clk 0:00:04.4]} 62. Rxa2
{[%clk 0:00:02.7]} 62... Kf7 {[%clk 0:00:05.1]} 63. Qh5+ {[%clk 0:00:02.8]}
63... Kg7 {[%clk 0:00:04.6]} 64. Re2 {[%clk 0:00:03]} 64... Qa4 {[%clk
0:00:01.7]} 65. Qg4+ {[%clk 0:00:02.4]} 65... Qxg4+ {[%clk 0:00:02.5]} 66. fxg4
{[%clk 0:00:03.3]} 66... Kf7 {[%clk 0:00:03.4]} 67. f4 {[%clk 0:00:03.8]} 67...
f5 {[%clk 0:00:02.5]} 68. g5 {[%clk 0:00:04]} 68... Kg6 {[%clk 0:00:02.9]} 69.
Kg3 {[%clk 0:00:04.7]} 69... Kh5 {[%clk 0:00:03.1]} 70. Re3 {[%clk 0:00:05.3]}
70... Kg6 {[%clk 0:00:03.1]} 71. Re6+ {[%clk 0:00:05.8]} 71... Kf7 {[%clk
0:00:03.8]} 72. Rf6+ {[%clk 0:00:06.4]} 72... Kg7 {[%clk 0:00:04.6]} 73. Rxf5
{[%clk 0:00:07.1]} 73... Rxe7 {[%clk 0:00:05.1]} 74. Re5 {[%clk 0:00:07.8]}
74... Kg6 {[%clk 0:00:04]} 75. Rxe7 {[%clk 0:00:07.4]} 75... Kh5 {[%clk
0:00:04.5]} 76. Rh7+ {[%clk 0:00:06.4]} 1-0

[Event "Late-Titled-Tuesday-Blitz-October-03-2023"]
[Site "Chess.com"]
[Date "2023.10.03"]
[Round "3"]
[White "Deeper44"]
[Black "Gogolev_Artemy"]
[Result "0-1"]
[WhiteElo "2575"]
[BlackElo "2408"]
[TimeControl "180+1"]
[EndTime "14:28:22 PDT"]
[Termination "Gogolev_Artemy won by checkmate"]

1. d4 {[%clk 0:02:49.7]} 1... d5 {[%clk 0:02:58.4]} 2. c4 {[%clk 0:02:50]} 2...
c6 {[%clk 0:02:58.7]} 3. Nf3 {[%clk 0:02:50.6]} 3... Nf6 {[%clk 0:02:58.8]} 4.
e3 {[%clk 0:02:48.2]} 4... Bf5 {[%clk 0:02:59.4]} 5. Bd3 {[%clk 0:02:48.5]} 5...
Bxd3 {[%clk 0:02:55.9]} 6. Qxd3 {[%clk 0:02:49.4]} 6... e6 {[%clk 0:02:56.4]} 7.
O-O {[%clk 0:02:50.2]} 7... Nbd7 {[%clk 0:02:57]} 8. Nbd2 {[%clk 0:02:50]} 8...
Be7 {[%clk 0:02:56.8]} 9. e4 {[%clk 0:02:50.3]} 9... dxe4 {[%clk 0:02:57.4]} 10.
Nxe4 {[%clk 0:02:51.2]} 10... Nxe4 {[%clk 0:02:58.2]} 11. Qxe4 {[%clk
0:02:52.1]} 11... Nf6 {[%clk 0:02:59]} 12. Qe2 {[%clk 0:02:51.3]} 12... O-O
{[%clk 0:02:59.3]} 13. Bf4 {[%clk 0:02:50.1]} 13... Qa5 {[%clk 0:02:54.7]} 14.
h3 {[%clk 0:02:20.2]} 14... Rfd8 {[%clk 0:02:53.8]} 15. Rfd1 {[%clk 0:02:19.5]}
15... h6 {[%clk 0:02:52.9]} 16. a3 {[%clk 0:02:09]} 16... Qf5 {[%clk 0:02:41]}
17. Qe5 {[%clk 0:02:03.2]} 17... Qxe5 {[%clk 0:02:02]} 18. dxe5 {[%clk
0:01:47.9]} 18... Ne4 {[%clk 0:01:53.9]} 19. Be3 {[%clk 0:01:38.3]} 19... Bc5
{[%clk 0:01:31.3]} 20. Bxc5 {[%clk 0:01:33.8]} 20... Nxc5 {[%clk 0:01:32.2]} 21.
b4 {[%clk 0:01:28.6]} 21... Na4 {[%clk 0:01:32.6]} 22. Rac1 {[%clk 0:01:19]}
22... Kf8 {[%clk 0:01:30.7]} 23. Kf1 {[%clk 0:01:13.3]} 23... Ke7 {[%clk
0:01:31.1]} 24. Rxd8 {[%clk 0:00:50.5]} 24... Rxd8 {[%clk 0:01:30.6]} 25. Ke2
{[%clk 0:00:51.4]} 25... a5 {[%clk 0:00:33.2]} 26. Rc2 {[%clk 0:00:43.7]} 26...
Ra8 {[%clk 0:00:29.4]} 27. Ke3 {[%clk 0:00:38.7]} 27... axb4 {[%clk 0:00:28.5]}
28. axb4 {[%clk 0:00:39.6]} 28... Nb6 {[%clk 0:00:27.1]} 29. Kd4 {[%clk
0:00:33.1]} 29... Rd8+ {[%clk 0:00:26.1]} 30. Ke3 {[%clk 0:00:31]} 30... Ra8
{[%clk 0:00:25.6]} 31. Kd4 {[%clk 0:00:31.3]} 31... Ra4 {[%clk 0:00:18.5]} 32.
Rb2 {[%clk 0:00:23.4]} 32... Ra8 {[%clk 0:00:11]} 33. Nd2 {[%clk 0:00:19.5]}
33... Rd8+ {[%clk 0:00:10.2]} 34. Kc3 {[%clk 0:00:20.2]} 34... Na4+ {[%clk
0:00:09.8]} 35. Kb3 {[%clk 0:00:17.5]} 35... Nxb2 {[%clk 0:00:10.7]} 36. Ne4
{[%clk 0:00:17.6]} 36... Nd3 {[%clk 0:00:10.4]} 37. f4 {[%clk 0:00:16.8]} 37...
b6 {[%clk 0:00:09.2]} 38. g3 {[%clk 0:00:16.4]} 38... Rd4 {[%clk 0:00:08.4]} 39.
Nd2 {[%clk 0:00:16.4]} 39... Nxf4 {[%clk 0:00:08.2]} 40. Kc3 {[%clk 0:00:17.3]}
40... Rd3+ {[%clk 0:00:08.3]} 41. Kc2 {[%clk 0:00:18.1]} 41... Rxg3 {[%clk
0:00:09.1]} 42. Ne4 {[%clk 0:00:18.1]} 42... Rxh3 {[%clk 0:00:09.6]} 43. Nd6
{[%clk 0:00:18.4]} 43... Rh2+ {[%clk 0:00:07.8]} 44. Kc3 {[%clk 0:00:18.7]}
44... Ne2+ {[%clk 0:00:08.3]} 45. Kd3 {[%clk 0:00:19.5]} 45... Nf4+ {[%clk
0:00:07.4]} 46. Ke4 {[%clk 0:00:19.8]} 46... Ng6 {[%clk 0:00:06.8]} 47. Nc8+
{[%clk 0:00:20.2]} 47... Kd7 {[%clk 0:00:06.8]} 48. Nxb6+ {[%clk 0:00:21.1]}
48... Kc7 {[%clk 0:00:07.5]} 49. c5 {[%clk 0:00:21.1]} 49... Rh4+ {[%clk
0:00:06.4]} 50. Kd3 {[%clk 0:00:21]} 50... Rxb4 {[%clk 0:00:06.5]} 51. Nc4
{[%clk 0:00:21.9]} 51... Rxc4 {[%clk 0:00:07]} 52. Kxc4 {[%clk 0:00:22.8]} 52...
Nxe5+ {[%clk 0:00:07.6]} 53. Kd4 {[%clk 0:00:23.7]} 53... Nd7 {[%clk 0:00:08.4]}
54. Ke4 {[%clk 0:00:24.6]} 54... f6 {[%clk 0:00:09]} 55. Kd4 {[%clk 0:00:25.5]}
55... e5+ {[%clk 0:00:09.5]} 56. Ke4 {[%clk 0:00:26.4]} 56... g6 {[%clk
0:00:09.8]} 57. Kd3 {[%clk 0:00:26.7]} 57... f5 {[%clk 0:00:10.4]} 58. Kc4
{[%clk 0:00:27.6]} 58... Nf6 {[%clk 0:00:10.8]} 59. Kd3 {[%clk 0:00:28.5]} 59...
Nd5 {[%clk 0:00:11.1]} 60. Kc4 {[%clk 0:00:29.1]} 60... e4 {[%clk 0:00:11.7]}
61. Kd4 {[%clk 0:00:29.6]} 61... e3 {[%clk 0:00:12]} 62. Kd3 {[%clk 0:00:30.5]}
62... f4 {[%clk 0:00:12.6]} 63. Ke2 {[%clk 0:00:31.4]} 63... Nc3+ {[%clk
0:00:13]} 64. Kf3 {[%clk 0:00:32.3]} 64... e2 {[%clk 0:00:13.6]} 65. Kf2 {[%clk
0:00:33]} 65... f3 {[%clk 0:00:14.2]} 66. Ke1 {[%clk 0:00:33.9]} 66... Kd7
{[%clk 0:00:13.3]} 67. Kf2 {[%clk 0:00:34.8]} 67... Nd1+ {[%clk 0:00:12.4]} 68.
Ke1 {[%clk 0:00:35.7]} 68... Ke6 {[%clk 0:00:12.1]} 69. Kd2 {[%clk 0:00:36.6]}
69... Kd5 {[%clk 0:00:12]} 70. Ke1 {[%clk 0:00:37.5]} 70... Ne3 {[%clk
0:00:11.9]} 71. Kd2 {[%clk 0:00:38.4]} 71... Kxc5 {[%clk 0:00:10.5]} 72. Ke1
{[%clk 0:00:39.3]} 72... Kd4 {[%clk 0:00:10.2]} 73. Kf2 {[%clk 0:00:40.2]} 73...
Ng4+ {[%clk 0:00:06]} 74. Ke1 {[%clk 0:00:41.1]} 74... f2+ {[%clk 0:00:06.6]}
75. Kxe2 {[%clk 0:00:41.8]} 75... Ke4 {[%clk 0:00:07.2]} 76. Kf1 {[%clk
0:00:42.7]} 76... Ke3 {[%clk 0:00:06.9]} 77. Kg2 {[%clk 0:00:43.6]} 77... Ne5
{[%clk 0:00:07.2]} 78. Kf1 {[%clk 0:00:44.5]} 78... Nd3 {[%clk 0:00:06.9]} 79.
Kg2 {[%clk 0:00:45.4]} 79... Ke2 {[%clk 0:00:07.6]} 80. Kg3 {[%clk 0:00:46.1]}
80... f1=Q {[%clk 0:00:06.5]} 81. Kg4 {[%clk 0:00:47]} 81... Qf5+ {[%clk
0:00:06.5]} 82. Kg3 {[%clk 0:00:47.9]} 82... Qf3+ {[%clk 0:00:06]} 83. Kh4
{[%clk 0:00:48.8]} 83... g5# {[%clk 0:00:05.2]} 0-1

[Event "Late-Titled-Tuesday-Blitz-October-03-2023"]
[Site "Chess.com"]
[Date "2023.10.03"]
[Round "3"]
[White "elcala"]
[Black "CraiggoryC"]
[Result "1/2-1/2"]
[WhiteElo "1729"]
[BlackElo "2292"]
[TimeControl "180+1"]
[EndTime "14:28:31 PDT"]
[Termination "Game drawn by repetition"]

1. d4 {[%clk 0:03:00.9]} 1... e6 {[%clk 0:02:57.8]} 2. c4 {[%clk 0:03:01]} 2...
Nf6 {[%clk 0:02:57.7]} 3. Nc3 {[%clk 0:02:57.8]} 3... d5 {[%clk 0:02:58.2]} 4.
cxd5 {[%clk 0:02:57.1]} 4... exd5 {[%clk 0:02:58.1]} 5. Nf3 {[%clk 0:02:52]}
5... c6 {[%clk 0:02:58.4]} 6. g3 {[%clk 0:02:40.5]} 6... Bf5 {[%clk 0:02:56.9]}
7. Bg2 {[%clk 0:02:38.7]} 7... h6 {[%clk 0:02:53]} 8. Qb3 {[%clk 0:02:38.6]}
8... Qb6 {[%clk 0:02:52.7]} 9. Qxb6 {[%clk 0:02:35.3]} 9... axb6 {[%clk
0:02:53.6]} 10. Bf4 {[%clk 0:02:32.1]} 10... Nbd7 {[%clk 0:02:48.2]} 11. Ne5
{[%clk 0:02:28.2]} 11... b5 {[%clk 0:02:43.9]} 12. Nxd7 {[%clk 0:02:26.6]} 12...
Nxd7 {[%clk 0:02:41.3]} 13. e4 {[%clk 0:02:18.1]} 13... dxe4 {[%clk 0:02:36.2]}
14. Bxe4 {[%clk 0:02:17.7]} 14... Bxe4 {[%clk 0:02:29.4]} 15. Nxe4 {[%clk
0:02:16.4]} 15... Bb4+ {[%clk 0:02:12.6]} 16. Bd2 {[%clk 0:02:04.2]} 16... Be7
{[%clk 0:01:48.1]} 17. O-O {[%clk 0:01:53.4]} 17... O-O {[%clk 0:01:42.6]} 18.
Rfe1 {[%clk 0:01:48.9]} 18... Rfe8 {[%clk 0:01:24.5]} 19. b4 {[%clk 0:01:47.9]}
19... Nb6 {[%clk 0:01:06.7]} 20. Nc5 {[%clk 0:01:37]} 20... Nc4 {[%clk
0:00:47.5]} 21. Bc3 {[%clk 0:01:35.6]} 21... b6 {[%clk 0:00:18.5]} 22. Nd3
{[%clk 0:01:29.1]} 22... Ra3 {[%clk 0:00:15.4]} 23. Rec1 {[%clk 0:01:19.9]}
23... Bf6 {[%clk 0:00:14]} 24. Ne5 {[%clk 0:00:51]} 24... Bxe5 {[%clk
0:00:11.5]} 25. dxe5 {[%clk 0:00:51.9]} 25... Nxe5 {[%clk 0:00:09.4]} 26. Bxe5
{[%clk 0:00:51.8]} 26... Rxe5 {[%clk 0:00:10]} 27. Rxc6 {[%clk 0:00:51.7]} 27...
Re2 {[%clk 0:00:10.1]} 28. Rxb6 {[%clk 0:00:51.2]} 28... Raxa2 {[%clk
0:00:09.3]} 29. Rxa2 {[%clk 0:00:50.4]} 29... Rxa2 {[%clk 0:00:10.2]} 30. Rxb5
{[%clk 0:00:50.5]} 30... Rb2 {[%clk 0:00:10.6]} 31. Rb7 {[%clk 0:00:46.9]} 31...
g6 {[%clk 0:00:10.6]} 32. b5 {[%clk 0:00:47.3]} 32... Kg7 {[%clk 0:00:10.4]} 33.
b6 {[%clk 0:00:47.8]} 33... h5 {[%clk 0:00:10.9]} 34. Rb8 {[%clk 0:00:48.3]}
34... h4 {[%clk 0:00:10.8]} 35. b7 {[%clk 0:00:48.6]} 35... hxg3 {[%clk
0:00:10.8]} 36. hxg3 {[%clk 0:00:47.9]} 36... Kh7 {[%clk 0:00:11]} 37. Kg2
{[%clk 0:00:45.3]} 37... Kg7 {[%clk 0:00:11]} 38. Kf3 {[%clk 0:00:45.7]} 38...
Rb3+ {[%clk 0:00:11.1]} 39. Ke4 {[%clk 0:00:45.7]} 39... Rb4+ {[%clk 0:00:11.4]}
40. Kd5 {[%clk 0:00:46]} 40... Rb2 {[%clk 0:00:11.2]} 41. Kc6 {[%clk 0:00:44.8]}
41... Rc2+ {[%clk 0:00:11.4]} 42. Kd7 {[%clk 0:00:44.1]} 42... Rd2+ {[%clk
0:00:11.7]} 43. Kc6 {[%clk 0:00:41.9]} 43... Rc2+ {[%clk 0:00:12]} 44. Kd5
{[%clk 0:00:42.4]} 44... Rd2+ {[%clk 0:00:12.2]} 45. Kc4 {[%clk 0:00:39.9]}
45... Rb2 {[%clk 0:00:12.1]} 46. Kc3 {[%clk 0:00:37.9]} 46... Rb6 {[%clk
0:00:12]} 47. f4 {[%clk 0:00:31.6]} 47... Rb1 {[%clk 0:00:11.4]} 48. Kd3 {[%clk
0:00:30]} 48... Rb3+ {[%clk 0:00:10.5]} 49. Ke4 {[%clk 0:00:29.4]} 49... Rb4+
{[%clk 0:00:09.4]} 50. Kd5 {[%clk 0:00:28.6]} 50... Rb1 {[%clk 0:00:07.8]} 51.
g4 {[%clk 0:00:24.5]} 51... Rd1+ {[%clk 0:00:07.6]} 52. Ke4 {[%clk 0:00:23.9]}
52... Re1+ {[%clk 0:00:07.9]} 53. Kd3 {[%clk 0:00:22.6]} 53... Rb1 {[%clk
0:00:07.7]} 54. f5 {[%clk 0:00:21]} 54... gxf5 {[%clk 0:00:07.5]} 55. gxf5
{[%clk 0:00:21.9]} 55... Rb6 {[%clk 0:00:06.5]} 56. Ke4 {[%clk 0:00:21.6]} 56...
Rb4+ {[%clk 0:00:06.3]} 57. Ke5 {[%clk 0:00:21.4]} 57... Rb5+ {[%clk 0:00:06.7]}
58. Kd6 {[%clk 0:00:21.3]} 58... Rb1 {[%clk 0:00:06.4]} 59. Ke5 {[%clk
0:00:16.9]} 59... Re1+ {[%clk 0:00:05.9]} 60. Kd5 {[%clk 0:00:15.4]} 60... Rd1+
{[%clk 0:00:06.2]} 61. Kc6 {[%clk 0:00:14.4]} 61... Rc1+ {[%clk 0:00:06.4]} 62.
Kd7 {[%clk 0:00:12.4]} 62... Rd1+ {[%clk 0:00:06.6]} 63. Ke8 {[%clk 0:00:12.1]}
63... Re1+ {[%clk 0:00:06.8]} 64. Kd8 {[%clk 0:00:11.7]} 64... Rd1+ {[%clk
0:00:07.2]} 65. Ke7 {[%clk 0:00:11.8]} 65... Re1+ {[%clk 0:00:07.1]} 66. Kd6
{[%clk 0:00:12.7]} 66... Rd1+ {[%clk 0:00:07.2]} 67. Ke5 {[%clk 0:00:13.6]}
67... Re1+ {[%clk 0:00:07.2]} 68. Kd4 {[%clk 0:00:14.5]} 68... Rd1+ {[%clk
0:00:07.4]} 69. Kc3 {[%clk 0:00:14.5]} 69... Rb1 {[%clk 0:00:07.7]} 70. Kc2
{[%clk 0:00:14.5]} 70... Rb6 {[%clk 0:00:07.7]} 71. Kd3 {[%clk 0:00:12.9]} 71...
Kf6 {[%clk 0:00:07.3]} 72. Ke4 {[%clk 0:00:12.1]} 72... Rb4+ {[%clk 0:00:07.1]}
73. Kd5 {[%clk 0:00:11.9]} 73... Rb1 {[%clk 0:00:06.3]} 74. Kc6 {[%clk
0:00:11.5]} 74... Rc1+ {[%clk 0:00:06.5]} 75. Kd6 {[%clk 0:00:10.6]} 75... Rd1+
{[%clk 0:00:06.5]} 76. Kc7 {[%clk 0:00:10.6]} 76... Rc1+ {[%clk 0:00:06.5]} 77.
Kd8 {[%clk 0:00:11]} 77... Rd1+ {[%clk 0:00:06.5]} 78. Ke8 {[%clk 0:00:11.4]}
78... Re1+ {[%clk 0:00:06.3]} 79. Kf8 {[%clk 0:00:09.3]} 79... Rb1 {[%clk
0:00:04.9]} 80. Ke8 {[%clk 0:00:09.5]} 80... Re1+ {[%clk 0:00:04.1]} 81. Kd7
{[%clk 0:00:09.6]} 81... Rd1+ {[%clk 0:00:04.3]} 82. Kc6 {[%clk 0:00:09.6]}
82... Rc1+ {[%clk 0:00:04.6]} 83. Kd5 {[%clk 0:00:09.2]} 83... Rd1+ {[%clk
0:00:04.5]} 84. Kc6 {[%clk 0:00:09.6]} 84... Rc1+ {[%clk 0:00:04.7]} 1/2-1/2

[Event "Late-Titled-Tuesday-Blitz-October-03-2023"]
[Site "Chess.com"]
[Date "2023.10.03"]
[Round "4"]
[White "DefiantChair"]
[Black "HElissalt"]
[Result "1-0"]
[WhiteElo "2571"]
[BlackElo "2365"]
[TimeControl "180+1"]
[EndTime "14:34:16 PDT"]
[Termination "DefiantChair won by resignation"]

1. e4 {[%clk 0:03:00.9]} 1... d6 {[%clk 0:02:55.3]} 2. d4 {[%clk 0:03:00.8]}
2... Nf6 {[%clk 0:02:55.3]} 3. Nc3 {[%clk 0:03:01.1]} 3... e5 {[%clk 0:02:55.6]}
4. Nf3 {[%clk 0:03:01.1]} 4... Nbd7 {[%clk 0:02:54.3]} 5. Bc4 {[%clk 0:03:01.2]}
5... Be7 {[%clk 0:02:54.6]} 6. O-O {[%clk 0:03:01.1]} 6... O-O {[%clk
0:02:55.2]} 7. a4 {[%clk 0:03:00.6]} 7... c6 {[%clk 0:02:53.3]} 8. h3 {[%clk
0:03:00]} 8... a5 {[%clk 0:02:49.4]} 9. Be3 {[%clk 0:02:58.5]} 9... Nb6 {[%clk
0:02:49]} 10. Ba2 {[%clk 0:02:56.4]} 10... Nfd7 {[%clk 0:02:49.5]} 11. Re1
{[%clk 0:02:55.8]} 11... exd4 {[%clk 0:02:44.6]} 12. Nxd4 {[%clk 0:02:55.3]}
12... Nc5 {[%clk 0:02:44.6]} 13. Nf5 {[%clk 0:02:39.7]} 13... Bxf5 {[%clk
0:02:40.9]} 14. exf5 {[%clk 0:02:40.6]} 14... d5 {[%clk 0:02:40.8]} 15. Qg4
{[%clk 0:02:26.7]} 15... Ncd7 {[%clk 0:02:34.7]} 16. Rad1 {[%clk 0:02:20.3]}
16... Bf6 {[%clk 0:02:28]} 17. Ne2 {[%clk 0:02:15.9]} 17... Ne5 {[%clk
0:02:24.9]} 18. Qg3 {[%clk 0:02:15.6]} 18... Nec4 {[%clk 0:02:24.6]} 19. Bc5
{[%clk 0:02:11.8]} 19... Re8 {[%clk 0:02:22.1]} 20. b3 {[%clk 0:02:01.7]} 20...
Ne5 {[%clk 0:02:16.1]} 21. c4 {[%clk 0:02:01.6]} 21... Ned7 {[%clk 0:02:12.4]}
22. Be3 {[%clk 0:01:58.7]} 22... Qc7 {[%clk 0:02:09.7]} 23. Qxc7 {[%clk
0:01:57.6]} 1-0

[Event "Late-Titled-Tuesday-Blitz-October-03-2023"]
[Site "Chess.com"]
[Date "2023.10.03"]
[Round "4"]
[White "Nf3c5"]
[Black "Road2GM3000"]
[Result "1-0"]
[WhiteElo "2600"]
[BlackElo "2369"]
[TimeControl "180+1"]
[EndTime "14:34:45 PDT"]
[Termination "Nf3c5 won by resignation"]

1. d4 {[%clk 0:03:00.9]} 1... d5 {[%clk 0:02:59.4]} 2. e3 {[%clk 0:02:55.4]}
2... Nf6 {[%clk 0:02:57.3]} 3. Nf3 {[%clk 0:02:53]} 3... c6 {[%clk 0:02:56.7]}
4. c4 {[%clk 0:02:49]} 4... a6 {[%clk 0:02:50.5]} 5. Nbd2 {[%clk 0:02:42]} 5...
Bf5 {[%clk 0:02:49.3]} 6. Qb3 {[%clk 0:02:34.4]} 6... Ra7 {[%clk 0:02:48.5]} 7.
Nh4 {[%clk 0:02:34.4]} 7... Bg6 {[%clk 0:02:47.8]} 8. Nxg6 {[%clk 0:02:29.8]}
8... hxg6 {[%clk 0:02:48.7]} 9. g3 {[%clk 0:02:26.2]} 9... e6 {[%clk 0:02:48.4]}
10. Bg2 {[%clk 0:02:26.2]} 10... Nbd7 {[%clk 0:02:48.7]} 11. O-O {[%clk
0:02:25.6]} 11... Be7 {[%clk 0:02:47.4]} 12. Qc2 {[%clk 0:02:24.6]} 12... O-O
{[%clk 0:02:46.4]} 13. b3 {[%clk 0:02:24.9]} 13... Ra8 {[%clk 0:02:39.2]} 14.
Bb2 {[%clk 0:02:24.5]} 14... Rc8 {[%clk 0:02:39.8]} 15. Rad1 {[%clk 0:02:24.3]}
15... c5 {[%clk 0:02:37.9]} 16. dxc5 {[%clk 0:02:16.7]} 16... Bxc5 {[%clk
0:02:35.5]} 17. Qb1 {[%clk 0:02:14.5]} 17... dxc4 {[%clk 0:02:32.7]} 18. Nxc4
{[%clk 0:02:14.2]} 18... Qc7 {[%clk 0:02:29]} 19. Rc1 {[%clk 0:01:51.1]} 19...
Qb8 {[%clk 0:02:27.9]} 20. Rfd1 {[%clk 0:01:51.1]} 20... Rfd8 {[%clk 0:02:24.4]}
21. a3 {[%clk 0:01:50.4]} 21... b5 {[%clk 0:02:20.8]} 22. Na5 {[%clk 0:01:50.1]}
22... Qb6 {[%clk 0:02:04.7]} 23. b4 {[%clk 0:01:47.9]} 23... Be7 {[%clk
0:01:59.9]} 24. Nc6 {[%clk 0:01:44.1]} 24... Re8 {[%clk 0:01:59.5]} 25. Nxe7+
{[%clk 0:01:44]} 1-0

[Event "Late-Titled-Tuesday-Blitz-October-03-2023"]
[Site "Chess.com"]
[Date "2023.10.03"]
[Round "4"]
[White "Dacean99"]
[Black "ritanovikova"]
[Result "1-0"]
[WhiteElo "2537"]
[BlackElo "2179"]
[TimeControl "180+1"]
[EndTime "14:34:58 PDT"]
[Termination "Dacean99 won by resignation"]

1. d4 {[%clk 0:03:00.9]} 1... e5 {[%clk 0:03:00]} 2. dxe5 {[%clk 0:03:00]} 2...
Nc6 {[%clk 0:03:00.3]} 3. Nf3 {[%clk 0:03:00.2]} 3... Qe7 {[%clk 0:03:00.7]} 4.
Nc3 {[%clk 0:02:59.5]} 4... Nxe5 {[%clk 0:03:00.6]} 5. e4 {[%clk 0:02:59.6]}
5... Nxf3+ {[%clk 0:03:01]} 6. Qxf3 {[%clk 0:02:58.6]} 6... d6 {[%clk
0:03:00.5]} 7. Bc4 {[%clk 0:02:57.3]} 7... Nf6 {[%clk 0:03:00.9]} 8. O-O {[%clk
0:02:56.4]} 8... Be6 {[%clk 0:03:01.2]} 9. Bxe6 {[%clk 0:02:55.3]} 9... Qxe6
{[%clk 0:03:01.4]} 10. Bg5 {[%clk 0:02:53.5]} 10... Be7 {[%clk 0:02:58.8]} 11.
Rfe1 {[%clk 0:02:48.8]} 11... Nd7 {[%clk 0:02:55.7]} 12. Bxe7 {[%clk 0:02:47.8]}
12... Qxe7 {[%clk 0:02:55.8]} 13. Nd5 {[%clk 0:02:47.6]} 13... Qd8 {[%clk
0:02:56.7]} 14. Qc3 {[%clk 0:02:47.5]} 14... c6 {[%clk 0:02:35.1]} 15. Qxg7
{[%clk 0:02:45.8]} 15... Rf8 {[%clk 0:02:35]} 16. Ne3 {[%clk 0:02:44.7]} 16...
Qc7 {[%clk 0:02:26.3]} 17. Qxh7 {[%clk 0:02:33.2]} 17... O-O-O {[%clk
0:02:25.2]} 18. Qf5 {[%clk 0:02:32.4]} 18... Kb8 {[%clk 0:02:24.3]} 19. Rad1
{[%clk 0:02:23.9]} 19... Rh8 {[%clk 0:02:21]} 20. b4 {[%clk 0:02:19.5]} 20... d5
{[%clk 0:02:15.1]} 21. f4 {[%clk 0:02:15.1]} 21... Rh4 {[%clk 0:02:04.9]} 22. g3
{[%clk 0:02:12]} 22... Rh6 {[%clk 0:01:53.7]} 23. exd5 {[%clk 0:02:08.6]} 23...
Rdh8 {[%clk 0:01:51.8]} 24. dxc6 {[%clk 0:01:59.1]} 24... Rxc6 {[%clk
0:01:48.5]} 25. Qxd7 {[%clk 0:01:55.8]} 25... Qb6 {[%clk 0:01:46.7]} 26. Qd4
{[%clk 0:01:53.7]} 26... Qc7 {[%clk 0:01:43.9]} 27. Qxh8+ {[%clk 0:01:52.3]} 1-0